[Event "10th LBHM Open 2024"]
[Site "Pune"]
[Date "2024.05.21"]
[Round "5.8"]
[White "Aadik Theophane Lenin"]
[Black "Arpith S Bijoy"]
[Result "1/2-1/2"]
[ECO "A43"]
[WhiteElo "1872"]
[BlackElo "2011"]
[PlyCount "112"]
[EventDate "2024.05.21"]
[EventType "swiss"]
[EventCountry "IND"]
[TimeControl "5400+30"]

1. d4 {[%emt 0:00:29]} Nf6 {[%emt 0:02:03]} 2. Nf3 {[%emt 0:00:15]} c5 {[%emt 0:00:16]} 3. d5 {[%emt 0:00:07]} d6 {[%emt 0:00:10]} 4. Nc3 {[%emt 0:00:24]} g6 {[%emt 0:00:10]} 5. e4 {[%emt 0:00:23]} Bg7 {[%emt 0:00:06]} 6. Be2 {[%emt 0:02:28]} O-O {[%emt 0:00:17]} 7. O-O {[%emt 0:00:50]} Bg4 {[%emt 0:02:17]} 8. h3 {[%emt 0:16:34]} Bxf3 {[%emt 0:00:11]} 9. Bxf3 {[%emt 0:00:09]} Nbd7 {[%emt 0:00:18]} 10. Be2 {[%emt 0:03:11]} Ne8 {[%emt 0:18:49]} 11. Bg5 {[%emt 0:07:31]} Nc7 {[%emt 0:00:56]} 12. Qd2 {[%emt 0:03:09]} a6 {[%emt 0:12:47]} 13. a4 {[%emt 0:01:06]} b6 14. Bh6 {[%emt 0:05:02]} Nf6 {[%emt 0:02:23]} 15. Bxg7 {[%emt 0:08:21]} Kxg7 {[%emt 0:00:03]} 16. f4 {[%emt 0:00:42]} b5 {[%emt 0:07:01]} 17. axb5 {[%emt 0:10:13]} axb5 {[%emt 0:00:03]} 18. Rxa8 {[%emt 0:02:24]} Qxa8 {[%emt 0:01:00]} 19. e5 {[%emt 0:02:15]} dxe5 {[%emt 0:00:15]} 20. d6 {[%emt 0:00:01]} exd6 {[%emt 0:01:24]} 21. fxe5 {[%emt 0:01:55]} dxe5 {[%emt 0:01:18]} 22. Qd6 {[%emt 0:00:24]} Ne6 {[%emt 0:04:30]} 23. Qxe5 {[%emt 0:00:30]} Qd8 {[%emt 0:00:08]} 24. Nxb5 {[%emt 0:07:09]} Nd4 {[%emt 0:00:24]} 25. Nxd4 {[%emt 0:00:25]} Qxd4+ {[%emt 0:00:56]} 26. Qxd4 {[%emt 0:00:02]} cxd4 {[%emt 0:00:02]} 27. Rd1 {[%emt 0:00:25]} Rc8 {[%emt 0:00:09]} 28. Rd2 {[%emt 0:02:33]} Ng8 29. b4 {[%emt 0:04:57]} Ne7 {[%emt 0:01:33]} 30. b5 {[%emt 0:02:10]} Kf6 {[%emt 0:00:42]} 31. Rxd4 {[%emt 0:03:32]} Rxc2 {[%emt 0:00:08]} 32. Rf4+ {[%emt 0:03:17]} Kg7 {[%emt 0:07:27]} 33. Bc4 {[%emt 0:00:10]} f5 {[%emt 0:01:38]} 34. Rd4 {[%emt 0:00:22]} Rb2 {[%emt 0:01:41]} 35. Rd7 {[%emt 0:00:13]} Kf6 {[%emt 0:00:06]} 36. Rd6+ {[%emt 0:00:10]} Kg5 {[%emt 0:00:05]} 37. Rd7 {[%emt 0:00:05]} Nc8 {[%emt 0:00:28]} 38. Rxh7 {[%emt 0:01:59]} Kf4 {[%emt 0:00:25]} 39. Rg7 {[%emt 0:03:57]} Nd6 {[%emt 0:00:27]} 40. Bf1 {[%emt 0:00:56]} Ne4 {[%emt 0:00:48]} 41. Bd3 {[%emt 0:02:48]} Ng3 {[%emt 0:00:11]} 42. Rxg6 {[%emt 0:02:45]} Rd2 {[%emt 0:00:08]} 43. Bc4 {[%emt 0:00:14]} Rd4 {[%emt 0:00:36]} 44. Bb3 {[%emt 0:00:33]} Rb4 {[%emt 0:03:04]} 45. Bc2 {[%emt 0:00:38]} Rxb5 {[%emt 0:00:09]} 46. Kh2 {[%emt 0:00:43]} Nf1+ {[%emt 0:00:05]} 47. Kg1 {[%emt 0:00:03]} Ne3 {[%emt 0:00:04]} 48. Bd3 {[%emt 0:00:12]} Rb2 {[%emt 0:00:14]} 49. Kh2 {[%emt 0:00:47]} Rd2 {[%emt 0:00:12]} 50. Bb5 {[%emt 0:00:14]} Ke5 {[%emt 0:00:22]} 51. Bc6 {[%emt 0:00:48]} f4 {[%emt 0:00:15]} 52. h4 {[%emt 0:00:23]} Rd1 {[%emt 0:03:35]} 53. Bf3 {[%emt 0:00:14]} Re1 {[%emt 0:00:16]} 54. Rg8 {[%emt 0:00:45]} Rc1 {[%emt 0:00:39]} 55. Re8+ {[%emt 0:00:43]} Kf6 {[%emt 0:00:26]} 56. Rf8+ {[%emt 0:00:03]} Ke5 {[%emt 0:34:50]} 1/2-1/2

[Event "10th LBHM Open 2024"]
[Site "Pune"]
[Date "2024.05.21"]
[Round "5.9"]
[White "Andabatla Satvik"]
[Black "Sharsha Backer"]
[Result "0-1"]
[ECO "B48"]
[WhiteElo "1684"]
[BlackElo "1997"]
[PlyCount "120"]
[EventDate "2024.05.21"]
[EventType "swiss"]
[EventCountry "IND"]
[TimeControl "5400+30"]

1. e4 {[%emt 0:00:02]} c5 {[%emt 0:04:15]} 2. Nf3 {[%emt 0:00:33]} e6 {[%emt 0:00:12]} 3. d4 {[%emt 0:00:07]} cxd4 {[%emt 0:00:10]} 4. Nxd4 {[%emt 0:00:09]} Nc6 {[%emt 0:00:10]} 5. Nc3 {[%emt 0:00:07]} Qc7 {[%emt 0:00:17]} 6. Be3 {[%emt 0:00:12]} a6 {[%emt 0:00:13]} 7. Bd3 {[%emt 0:00:11]} Nf6 {[%emt 0:01:06]} 8. O-O {[%emt 0:00:13]} b5 {[%emt 0:01:37]} 9. h3 {[%emt 0:01:06]} Bb7 {[%emt 0:01:19]} 10. Qe2 {[%emt 0:09:08]} Rc8 {[%emt 0:08:44]} 11. f4 Nxd4 {[%emt 0:04:30]} 12. Bxd4 {[%emt 0:15:27]} Bc5 {[%emt 0:00:29]} 13. Bxc5 {[%emt 0:00:24]} Qxc5+ {[%emt 0:00:02]} 14. Kh2 {[%emt 0:00:40]} b4 {[%emt 0:00:48]} 15. Nd1 {[%emt 0:04:49]} O-O {[%emt 0:02:15]} 16. Nf2 {[%emt 0:03:30]} e5 {[%emt 0:10:09]} 17. Ng4 {[%emt 0:03:06]} Nxg4+ {[%emt 0:00:29]} 18. Qxg4 {[%emt 0:00:05]} d6 19. b3 {[%emt 0:05:01]} Rc7 {[%emt 0:05:56]} 20. Rae1 {[%emt 0:03:35]} exf4 {[%emt 0:12:02]} 21. Rxf4 {[%emt 0:00:17]} Qe5 {[%emt 0:00:40]} 22. Ref1 {[%emt 0:01:58]} Bc8 {[%emt 0:01:55]} 23. Qg3 {[%emt 0:00:08]} Be6 {[%emt 0:00:39]} 24. Kh1 {[%emt 0:00:11]} a5 {[%emt 0:01:23]} 25. Qe1 Rfc8 {[%emt 0:03:32]} 26. Qd1 {[%emt 0:10:02]} h6 {[%emt 0:01:36]} 27. Rh4 {[%emt 0:09:21]} Rc5 {[%emt 0:02:05]} 28. Rf2 {[%emt 0:03:17]} Qb2 {[%emt 0:15:36]} 29. Ba6 {[%emt 0:07:49]} R8c6 {[%emt 0:04:14]} 30. Bc4 {[%emt 0:02:17]} Bxc4 {[%emt 0:01:30]} 31. bxc4 {[%emt 0:00:05]} Rxc4 {[%emt 0:01:03]} 32. Qd5 {[%emt 0:00:46]} Qa1+ {[%emt 0:00:18]} 33. Kh2 {[%emt 0:00:19]} Qe5+ {[%emt 0:00:12]} 34. Rhf4 {[%emt 0:00:23]} Qxd5 {[%emt 0:00:32]} 35. exd5 {[%emt 0:00:09]} Rxf4 {[%emt 0:00:17]} 36. Rxf4 {[%emt 0:01:00]} Rxc2 {[%emt 0:00:12]} 37. a3 {[%emt 0:00:03]} b3 {[%emt 0:00:32]} 38. Rf3 {[%emt 0:00:18]} a4 {[%emt 0:00:09]} 39. Rf4 {[%emt 0:00:03]} Rc5 {[%emt 0:01:18]} 40. Rxa4 {[%emt 0:00:32]} Rb5 {[%emt 0:00:10]} 41. Ra8+ {[%emt 0:00:19]} Kh7 {[%emt 0:00:02]} 42. a4 {[%emt 0:00:07]} Rb4 {[%emt 0:00:40]} 43. a5 {[%emt 0:00:05]} b2 {[%emt 0:00:21]} 44. a6 {[%emt 0:00:03]} b1=Q {[%emt 0:00:16]} 45. a7 {[%emt 0:00:05]} Ra4 {[%emt 0:00:15]} 46. Rb8 {[%emt 0:00:08]} Qe4 {[%emt 0:00:25]} 47. a8=Q {[%emt 0:00:08]} Rxa8 {[%emt 0:00:10]} 48. Rxa8 {[%emt 0:00:05]} Qe5+ {[%emt 0:00:09]} 49. Kh1 {[%emt 0:00:05]} Qxd5 {[%emt 0:00:06]} 50. Ra1 {[%emt 0:00:05]} Qb3 {[%emt 0:00:10]} 51. h4 {[%emt 0:00:07]} d5 {[%emt 0:00:07]} 52. h5 {[%emt 0:00:15]} d4 {[%emt 0:00:06]} 53. g4 {[%emt 0:00:29]} d3 {[%emt 0:00:10]} 54. g5 {[%emt 0:00:03]} hxg5 {[%emt 0:00:10]} 55. h6 {[%emt 0:00:09]} d2 {[%emt 0:00:05]} 56. hxg7 {[%emt 0:00:10]} d1=Q+ {[%emt 0:00:09]} 57. Rxd1 {[%emt 0:00:05]} Qxd1+ {[%emt 0:00:07]} 58. Kh2 {[%emt 0:00:03]} Kxg7 {[%emt 0:00:24]} 59. Kg2 {[%emt 0:00:04]} Qe2+ {[%emt 0:00:07]} 60. Kh1 {[%emt 0:00:04]} g4 {[%emt 0:00:08]} 0-1

[Event "10th LBHM Open 2024"]
[Site "Pune"]
[Date "2024.05.21"]
[Round "5.10"]
[White "Bhosale Shriraj"]
[Black "Raman Siddhardh B"]
[Result "1-0"]
[ECO "A16"]
[WhiteElo "2036"]
[BlackElo "1762"]
[PlyCount "79"]
[EventDate "2024.05.21"]
[EventType "swiss"]
[EventCountry "IND"]
[TimeControl "5400+30"]

1. Nf3 {[%emt 0:00:08]} Nf6 {[%emt 0:00:20]} 2. g3 {[%emt 0:00:32]} g6 {[%emt 0:00:11]} 3. Bg2 {[%emt 0:00:18]} Bg7 {[%emt 0:00:09]} 4. d3 {[%emt 0:00:07]} d6 {[%emt 0:00:05]} 5. O-O {[%emt 0:00:30]} O-O {[%emt 0:01:51]} 6. c4 {[%emt 0:01:52]} Nbd7 {[%emt 0:00:29]} 7. Nc3 {[%emt 0:00:11]} Nb6 {[%emt 0:05:49]} 8. e4 {[%emt 0:03:01]} e5 {[%emt 0:03:39]} 9. h3 {[%emt 0:04:44]} Bd7 {[%emt 0:00:30]} 10. c5 {[%emt 0:03:55]} Nc8 11. cxd6 {[%emt 0:01:32]} cxd6 {[%emt 0:03:25]} 12. d4 {[%emt 0:03:38]} Re8 {[%emt 0:02:11]} 13. Be3 {[%emt 0:05:37]} Nb6 {[%emt 0:01:47]} 14. b3 {[%emt 0:00:51]} Rc8 {[%emt 0:01:54]} 15. Rc1 {[%emt 0:00:56]} Bc6 {[%emt 0:06:42]} 16. d5 {[%emt 0:03:05]} Bd7 {[%emt 0:00:35]} 17. Qd3 {[%emt 0:02:44]} Qe7 {[%emt 0:08:04]} 18. a4 {[%emt 0:00:06]} Nh5 {[%emt 0:01:39]} 19. Nb5 {[%emt 1:06:13]} Bxb5 {[%emt 0:01:50]} 20. Qxb5 {[%emt 0:00:00]} f5 {[%emt 0:00:18]} 21. h4 {[%emt 0:00:00]} f4 {[%emt 0:03:18]} 22. Bxb6 {[%emt 0:00:00]} axb6 {[%emt 0:00:46]} 23. Bh3 {[%emt 0:00:00]} Rxc1 {[%emt 0:01:07]} 24. Be6+ {[%emt 0:00:00]} Kh8 {[%emt 0:00:56]} 25. Rxc1 {[%emt 0:00:00]} fxg3 {[%emt 0:00:52]} 26. Rc7 {[%emt 0:00:00]} Qf8 {[%emt 0:04:04]} 27. Rf7 {[%emt 0:00:00]} Qg8 {[%emt 0:00:01]} 28. Rxg7 {[%emt 0:00:00]} Nxg7 {[%emt 0:02:07]} 29. Bxg8 {[%emt 0:00:00]} gxf2+ {[%emt 0:00:06]} 30. Kxf2 {[%emt 0:00:00]} Kxg8 {[%emt 0:00:10]} 31. Qxb6 {[%emt 0:00:00]} Rf8 {[%emt 0:00:11]} 32. Qxd6 {[%emt 0:00:00]} Nh5 {[%emt 0:00:09]} 33. Qe6+ {[%emt 0:00:00]} Kg7 {[%emt 0:00:12]} 34. Qxe5+ {[%emt 0:00:00]} Nf6 {[%emt 0:00:14]} 35. d6 {[%emt 0:00:00]} Kg8 {[%emt 0:00:21]} 36. Qe6+ {[%emt 0:00:00]} Kg7 {[%emt 0:00:08]} 37. d7 {[%emt 0:00:00]} Kh6 {[%emt 0:00:10]} 38. Qxf6 {[%emt 0:00:00]} Rxf6 {[%emt 0:00:04]} 39. d8=Q {[%emt 0:00:00]} Rf8 {[%emt 0:53:36]} 40. Qd6 {[%emt 0:10:30]} 1-0

[Event "10th LBHM Open 2024"]
[Site "Pune"]
[Date "2024.05.21"]
[Round "6.1"]
[White "Ghosh, Diptayan"]
[Black "Nitin, S.."]
[Result "1/2-1/2"]
[ECO "E92"]
[WhiteElo "2564"]
[BlackElo "2356"]
[PlyCount "78"]
[EventDate "2024.05.21"]
[EventType "swiss"]
[EventCountry "IND"]
[TimeControl "5400+30"]

1. d4 {[%emt 0:01:22]} Nf6 {[%emt 0:00:35]} 2. c4 {[%emt 0:00:05]} g6 {[%emt 0:00:09]} 3. Nc3 {[%emt 0:00:05]} Bg7 {[%emt 0:00:07]} 4. e4 {[%emt 0:00:03]} d6 {[%emt 0:00:06]} 5. Be2 {[%emt 0:00:04]} O-O {[%emt 0:00:07]} 6. Be3 {[%emt 0:00:02]} e5 {[%emt 0:01:55]} 7. Nf3 {[%emt 0:01:07]} Ng4 {[%emt 0:00:58]} 8. Bg5 {[%emt 0:00:23]} f6 {[%emt 0:00:08]} 9. Bc1 {[%emt 0:04:57]} Nc6 {[%emt 0:05:09]} 10. d5 {[%emt 0:03:23]} Ne7 {[%emt 0:00:53]} 11. h3 {[%emt 0:04:11]} Nh6 {[%emt 0:00:11]} 12. g4 {[%emt 0:00:23]} f5 {[%emt 0:04:33]} 13. Ng5 c6 {[%emt 0:11:21]} 14. Rg1 {[%emt 0:06:45]} Kh8 {[%emt 0:08:21]} 15. Qd3 {[%emt 0:10:05]} f4 {[%emt 0:09:02]} 16. Bd2 {[%emt 0:21:29]} Nhg8 {[%emt 0:06:24]} 17. O-O-O {[%emt 0:02:24]} Nf6 {[%emt 0:03:39]} 18. Kb1 {[%emt 0:02:38]} h6 {[%emt 0:08:57]} 19. Ne6 {[%emt 0:03:57]} Bxe6 {[%emt 0:00:07]} 20. dxe6 {[%emt 0:00:02]} Ne8 {[%emt 0:01:22]} 21. g5 {[%emt 0:00:08]} h5 {[%emt 0:03:42]} 22. Bc1 Nc7 {[%emt 0:09:36]} 23. Qxd6 {[%emt 0:06:44]} Qxd6 {[%emt 0:00:42]} 24. Rxd6 {[%emt 0:00:05]} Nc8 {[%emt 0:00:07]} 25. Rd7 {[%emt 0:01:04]} Nxe6 {[%emt 0:00:09]} 26. Rxb7 {[%emt 0:01:13]} Rd8 {[%emt 0:02:04]} 27. c5 {[%emt 0:09:02]} Nxc5 {[%emt 0:05:07]} 28. Rc7 {[%emt 0:00:35]} Nd6 {[%emt 0:00:31]} 29. Rxc6 {[%emt 0:05:55]} Ncxe4 {[%emt 0:00:53]} 30. Nxe4 {[%emt 0:03:45]} Nxe4 {[%emt 0:00:02]} 31. f3 {[%emt 0:00:05]} Ng3 {[%emt 0:03:17]} 32. Bd1 {[%emt 0:00:53]} Rd3 {[%emt 0:03:21]} 33. Kc2 {[%emt 0:03:28]} Rad8 {[%emt 0:00:37]} 34. Rxg6 {[%emt 0:00:15]} Nf5 {[%emt 0:02:31]} 35. Be2 {[%emt 0:01:01]} Nd4+ {[%emt 0:00:39]} 36. Kxd3 {[%emt 0:00:54]} Nxf3+ {[%emt 0:00:02]} 37. Ke4 {[%emt 0:01:31]} Nxg1 {[%emt 0:00:07]} 38. Bxh5 {[%emt 0:00:08]} Nxh3 {[%emt 0:01:19]} 39. Kf5 {[%emt 0:03:27]} Rf8+ {[%emt 0:11:10]} 1/2-1/2

[Event "10th LBHM Open 2024"]
[Site "Pune"]
[Date "2024.05.21"]
[Round "6.2"]
[White "Sharsha Backer"]
[Black "Aronyak Ghosh"]
[Result "1/2-1/2"]
[ECO "E11"]
[WhiteElo "1997"]
[BlackElo "2536"]
[PlyCount "63"]
[EventDate "2024.05.21"]
[EventType "swiss"]
[EventCountry "IND"]
[TimeControl "5400+30"]

1. d4 {[%emt 0:07:43]} Nf6 {[%emt 0:00:56]} 2. c4 {[%emt 0:00:18]} e6 {[%emt 0:00:28]} 3. Nf3 {[%emt 0:00:13]} Bb4+ {[%emt 0:02:41]} 4. Bd2 {[%emt 0:00:13]} Qe7 {[%emt 0:00:21]} 5. g3 {[%emt 0:00:17]} O-O {[%emt 0:01:28]} 6. Bg2 {[%emt 0:00:13]} Bxd2+ {[%emt 0:02:38]} 7. Qxd2 {[%emt 0:00:14]} d6 {[%emt 0:00:15]} 8. Nc3 {[%emt 0:00:56]} e5 {[%emt 0:01:27]} 9. O-O {[%emt 0:00:22]} Nc6 {[%emt 0:03:23]} 10. d5 {[%emt 0:03:46]} Nb8 {[%emt 0:00:17]} 11. e4 {[%emt 0:00:17]} Nh5 {[%emt 0:05:33]} 12. Ne1 f5 {[%emt 0:03:01]} 13. exf5 {[%emt 0:04:40]} Bxf5 {[%emt 0:00:13]} 14. Nc2 {[%emt 0:01:19]} Nd7 15. Ne3 {[%emt 0:08:45]} Bg6 {[%emt 0:07:24]} 16. b4 {[%emt 0:01:34]} a6 {[%emt 0:05:14]} 17. Rad1 {[%emt 0:03:14]} Rae8 {[%emt 0:03:38]} 18. c5 {[%emt 0:06:03]} e4 {[%emt 0:08:22]} 19. Nc4 {[%emt 0:04:01]} Nhf6 {[%emt 0:02:36]} 20. c6 {[%emt 0:04:42]} bxc6 {[%emt 0:02:26]} 21. dxc6 {[%emt 0:01:07]} Ne5 {[%emt 0:00:36]} 22. Nxe5 {[%emt 0:02:19]} Qxe5 {[%emt 0:00:14]} 23. Rfe1 {[%emt 0:02:08]} Qh5 {[%emt 0:06:33]} 24. h3 {[%emt 0:06:11]} Re5 {[%emt 0:01:27]} 25. Qe2 {[%emt 0:02:25]} Qxe2 {[%emt 0:12:15]} 26. Rxe2 {[%emt 0:00:32]} Rb8 {[%emt 0:00:48]} 27. Rd4 {[%emt 0:03:53]} Rb6 {[%emt 0:01:50]} 28. Nxe4 {[%emt 0:06:44]} Nxe4 {[%emt 0:02:01]} 29. Bxe4 {[%emt 0:00:15]} Rxe4 {[%emt 0:07:37]} 30. Rexe4 {[%emt 0:00:31]} Bxe4 {[%emt 0:00:03]} 31. Rxe4 {[%emt 0:00:11]} Rxc6 {[%emt 0:00:04]} 32. Re7 {[%emt 0:01:27]} 1/2-1/2

[Event "10th LBHM Open 2024"]
[Site "Pune"]
[Date "2024.05.21"]
[Round "6.3"]
[White "Neelash Saha"]
[Black "Ratnakaran, K.."]
[Result "1-0"]
[ECO "A49"]
[WhiteElo "2483"]
[BlackElo "2275"]
[PlyCount "111"]
[EventDate "2024.05.21"]
[EventType "swiss"]
[EventCountry "IND"]
[TimeControl "5400+30"]

1. Nf3 {[%emt 0:00:19]} Nf6 {[%emt 0:00:15]} 2. g3 {[%emt 0:00:15]} g6 {[%emt 0:00:06]} 3. b3 {[%emt 0:00:06]} Bg7 {[%emt 0:00:03]} 4. Bb2 {[%emt 0:00:04]} O-O {[%emt 0:00:07]} 5. Bg2 {[%emt 0:00:03]} d6 {[%emt 0:00:05]} 6. d4 {[%emt 0:00:03]} Nbd7 {[%emt 0:00:09]} 7. O-O {[%emt 0:00:44]} e5 {[%emt 0:00:07]} 8. dxe5 {[%emt 0:00:05]} Ng4 {[%emt 0:00:04]} 9. Qd2 {[%emt 0:00:09]} dxe5 {[%emt 0:00:40]} 10. h3 {[%emt 0:00:29]} Nh6 {[%emt 0:00:11]} 11. a4 {[%emt 0:00:39]} Re8 {[%emt 0:00:34]} 12. Rd1 {[%emt 0:07:40]} e4 {[%emt 0:02:32]} 13. Bxg7 {[%emt 0:00:07]} Kxg7 {[%emt 0:00:15]} 14. Qc3+ {[%emt 0:03:01]} f6 {[%emt 0:05:37]} 15. Ng5 {[%emt 0:07:05]} e3 16. f4 Nf5 {[%emt 0:09:39]} 17. Ne4 {[%emt 0:00:55]} Re6 {[%emt 0:08:05]} 18. g4 {[%emt 0:12:59]} Nd6 {[%emt 0:01:08]} 19. Nxd6 {[%emt 0:00:38]} cxd6 {[%emt 0:00:05]} 20. Na3 {[%emt 0:00:06]} a6 {[%emt 0:03:08]} 21. Rd3 {[%emt 0:06:54]} Qe7 {[%emt 0:01:42]} 22. Nc4 {[%emt 0:02:33]} Nc5 {[%emt 0:02:36]} 23. Rxe3 {[%emt 0:00:33]} Bd7 {[%emt 0:01:26]} 24. Rd1 {[%emt 0:01:15]} Bc6 {[%emt 0:01:32]} 25. Bxc6 {[%emt 0:04:55]} bxc6 {[%emt 0:00:05]} 26. Rxd6 {[%emt 0:00:06]} Rxe3 {[%emt 0:00:25]} 27. Qxe3 {[%emt 0:00:06]} Qxe3+ {[%emt 0:03:31]} 28. Nxe3 {[%emt 0:00:05]} Re8 {[%emt 0:00:02]} 29. Rxc6 {[%emt 0:00:40]} Nxb3 {[%emt 0:00:05]} 30. Nd5 {[%emt 0:00:51]} Nd2 {[%emt 0:01:05]} 31. Rc7+ {[%emt 0:00:06]} Kf8 {[%emt 0:00:08]} 32. e3 {[%emt 0:01:40]} Re4 {[%emt 0:00:06]} 33. Kf2 {[%emt 0:02:23]} Rxa4 {[%emt 0:02:26]} 34. Nxf6 {[%emt 0:00:08]} h6 {[%emt 0:00:26]} 35. Ke2 {[%emt 0:01:54]} Rc4 {[%emt 0:01:19]} 36. Nd5 {[%emt 0:01:36]} Rxc7 {[%emt 0:01:09]} 37. Nxc7 {[%emt 0:00:05]} Ne4 {[%emt 0:00:02]} 38. Nxa6 {[%emt 0:00:05]} Ke7 {[%emt 0:00:03]} 39. Nb4 {[%emt 0:01:08]} Kd6 {[%emt 0:00:06]} 40. Nd3 {[%emt 0:00:08]} g5 {[%emt 0:00:15]} 41. Nf2 {[%emt 0:00:29]} Nc5 {[%emt 0:00:27]} 42. Kf3 {[%emt 0:00:09]} Kd5 {[%emt 0:00:07]} 43. Ne4 {[%emt 0:00:58]} Ne6 {[%emt 0:00:42]} 44. Nf6+ {[%emt 0:00:09]} Kd6 {[%emt 0:00:04]} 45. c3 {[%emt 0:00:46]} gxf4 {[%emt 0:01:06]} 46. exf4 {[%emt 0:00:05]} Nc7 {[%emt 0:00:03]} 47. Ke4 {[%emt 0:00:33]} Ke6 {[%emt 0:00:15]} 48. Nh5 {[%emt 0:00:25]} Nb5 {[%emt 0:00:52]} 49. f5+ {[%emt 0:00:05]} Kd6 {[%emt 0:00:05]} 50. c4 {[%emt 0:00:47]} Nc3+ {[%emt 0:00:04]} 51. Kd4 {[%emt 0:00:20]} Ne2+ {[%emt 0:00:04]} 52. Ke3 {[%emt 0:00:06]} Nc3 {[%emt 0:00:22]} 53. Nf4 {[%emt 0:00:24]} Kc5 {[%emt 0:00:33]} 54. Kd3 {[%emt 0:00:40]} Nd1 {[%emt 0:00:06]} 55. Ne6+ {[%emt 0:00:05]} Kd6 {[%emt 0:00:08]} 56. Kd4 {[%emt 0:00:06]} 1-0

[Event "10th LBHM Open 2024"]
[Site "Pune"]
[Date "2024.05.21"]
[Round "6.4"]
[White "Md Imran"]
[Black "Dere Pushkar"]
[Result "1/2-1/2"]
[ECO "D48"]
[WhiteElo "2184"]
[BlackElo "2209"]
[PlyCount "60"]
[EventDate "2024.05.21"]
[EventType "swiss"]
[EventCountry "IND"]
[TimeControl "5400+30"]

1. Nf3 {[%emt 0:01:00]} d5 {[%emt 0:00:06]} 2. e3 {[%emt 0:00:11]} Nf6 {[%emt 0:00:55]} 3. c4 {[%emt 0:00:38]} c6 {[%emt 0:00:09]} 4. Nc3 {[%emt 0:00:16]} Nbd7 {[%emt 0:01:35]} 5. d4 {[%emt 0:01:23]} e6 {[%emt 0:00:57]} 6. Bd3 {[%emt 0:02:09]} dxc4 {[%emt 0:00:27]} 7. Bxc4 {[%emt 0:00:04]} b5 {[%emt 0:00:16]} 8. Bd3 {[%emt 0:00:42]} a6 {[%emt 0:00:25]} 9. e4 {[%emt 0:00:28]} c5 {[%emt 0:00:43]} 10. e5 {[%emt 0:00:19]} Ng4 {[%emt 0:15:14]} 11. Be4 {[%emt 0:14:47]} Ra7 12. O-O {[%emt 0:19:19]} cxd4 {[%emt 0:06:27]} 13. Nxd4 {[%emt 0:00:05]} Ndxe5 {[%emt 0:01:44]} 14. h3 {[%emt 0:09:43]} Nf6 {[%emt 0:08:11]} 15. Bf4 {[%emt 0:05:29]} Nxe4 {[%emt 0:04:07]} 16. Nxe4 {[%emt 0:01:11]} Ng6 {[%emt 0:02:12]} 17. Bg5 {[%emt 0:04:47]} f6 {[%emt 0:02:25]} 18. Be3 {[%emt 0:02:44]} e5 {[%emt 0:06:18]} 19. Ne6 {[%emt 0:03:36]} Qxd1 {[%emt 0:01:33]} 20. Rfxd1 {[%emt 0:02:22]} Rd7 {[%emt 0:00:20]} 21. Nxf8 {[%emt 0:01:36]} Kxf8 {[%emt 0:02:07]} 22. Nd6 {[%emt 0:02:30]} Ke7 {[%emt 0:01:15]} 23. Rac1 {[%emt 0:01:36]} Ke6 {[%emt 0:03:51]} 24. Ne4 {[%emt 0:00:28]} Rxd1+ {[%emt 0:03:50]} 25. Rxd1 {[%emt 0:00:01]} Ne7 {[%emt 0:05:35]} 26. Kf1 {[%emt 0:02:16]} Kf7 {[%emt 0:00:36]} 27. Kg1 {[%emt 0:00:01]} Ke6 {[%emt 0:00:06]} 28. Kf1 {[%emt 0:00:01]} Kf7 {[%emt 0:00:07]} 29. Kg1 {[%emt 0:00:00]} Ke6 {[%emt 0:00:06]} 30. Kf1 {[%emt 0:00:03]} Kf7 {[%emt 0:01:02]} 1/2-1/2

[Event "10th LBHM Open 2024"]
[Site "Pune"]
[Date "2024.05.21"]
[Round "6.5"]
[White "Agnivo Chakraborty"]
[Black "Koustuv Dash"]
[Result "1-0"]
[ECO "B12"]
[WhiteElo "1871"]
[BlackElo "2133"]
[PlyCount "111"]
[EventDate "2024.05.21"]
[EventType "swiss"]
[EventCountry "IND"]
[TimeControl "5400+30"]

1. e4 {[%emt 0:00:04]} c6 {[%emt 0:00:09]} 2. d4 {[%emt 0:00:05]} d5 {[%emt 0:00:03]} 3. e5 {[%emt 0:00:06]} Bf5 {[%emt 0:00:04]} 4. Nc3 {[%emt 0:00:05]} e6 {[%emt 0:00:26]} 5. g4 {[%emt 0:00:06]} Bg6 {[%emt 0:00:03]} 6. Nge2 {[%emt 0:00:07]} c5 {[%emt 0:00:46]} 7. h4 {[%emt 0:00:06]} h6 {[%emt 0:04:24]} 8. Be3 {[%emt 0:00:19]} Nc6 {[%emt 0:02:48]} 9. dxc5 {[%emt 0:00:11]} Nxe5 {[%emt 0:01:12]} 10. Nd4 {[%emt 0:00:07]} Nc6 {[%emt 0:05:44]} 11. Bb5 {[%emt 0:00:55]} Qc8 {[%emt 0:03:12]} 12. f4 Nf6 {[%emt 0:15:21]} 13. f5 {[%emt 0:16:16]} exf5 {[%emt 0:01:06]} 14. Qe2 {[%emt 0:13:02]} Be7 {[%emt 0:03:37]} 15. h5 {[%emt 0:07:22]} Bh7 {[%emt 0:00:28]} 16. g5 {[%emt 0:02:36]} hxg5 {[%emt 0:00:14]} 17. Bxg5 {[%emt 0:02:02]} O-O {[%emt 0:01:08]} 18. Bxc6 {[%emt 0:01:09]} bxc6 {[%emt 0:01:27]} 19. O-O-O {[%emt 0:02:30]} Re8 {[%emt 0:01:17]} 20. Qf3 {[%emt 0:00:37]} Ne4 {[%emt 0:03:21]} 21. Bxe7 {[%emt 0:00:56]} Rxe7 {[%emt 0:02:46]} 22. Rhg1 {[%emt 0:01:41]} Qd7 {[%emt 0:05:15]} 23. h6 {[%emt 0:01:42]} f6 {[%emt 0:10:10]} 24. Nxc6 {[%emt 0:06:29]} Qxc6 {[%emt 0:01:17]} 25. Nxd5 {[%emt 0:00:08]} Rf7 {[%emt 0:04:48]} 26. Qb3 {[%emt 0:00:28]} Kf8 {[%emt 0:09:49]} 27. Nf4 {[%emt 0:03:23]} Re8 {[%emt 0:04:51]} 28. Qxf7+ {[%emt 0:00:25]} Kxf7 {[%emt 0:00:16]} 29. Rxg7+ {[%emt 0:00:04]} Kf8 {[%emt 0:00:08]} 30. Rxh7 {[%emt 0:00:04]} Re7 {[%emt 0:09:52]} 31. Ng6+ {[%emt 0:01:39]} Kg8 {[%emt 0:00:07]} 32. Nxe7+ {[%emt 0:00:05]} Kxh7 {[%emt 0:00:04]} 33. Nxc6 {[%emt 0:00:05]} Kxh6 {[%emt 0:10:47]} 34. Nd4 {[%emt 0:00:07]} Nxc5 {[%emt 0:00:00]} 35. Nxf5+ {[%emt 0:00:05]} Kg6 {[%emt 0:00:00]} 36. Ne7+ {[%emt 0:00:14]} Kf7 {[%emt 0:00:00]} 37. Nc6 {[%emt 0:00:08]} a6 {[%emt 0:00:00]} 38. Nb4 {[%emt 0:00:22]} Ke6 {[%emt 0:00:00]} 39. Rd5 {[%emt 0:00:10]} Ne4 {[%emt 0:00:00]} 40. Ra5 {[%emt 0:00:05]} f5 {[%emt 0:00:00]} 41. Nd3 {[%emt 0:00:09]} Nd6 {[%emt 0:00:00]} 42. Rxa6 {[%emt 0:00:07]} Kd5 {[%emt 0:00:00]} 43. Rxd6+ {[%emt 0:00:25]} Kxd6 {[%emt 0:00:00]} 44. Kd2 {[%emt 0:00:06]} Kd5 {[%emt 0:00:00]} 45. Ke3 {[%emt 0:00:05]} Kc4 {[%emt 0:00:00]} 46. Kf4 {[%emt 0:00:04]} Kb5 {[%emt 0:00:00]} 47. Kxf5 {[%emt 0:00:05]} Ka6 {[%emt 0:00:00]} 48. Ke6 {[%emt 0:00:38]} Ka7 {[%emt 0:00:00]} 49. Kd7 {[%emt 0:00:08]} Ka8 {[%emt 0:00:00]} 50. c4 {[%emt 0:00:05]} Ka7 {[%emt 0:00:00]} 51. c5 {[%emt 0:00:06]} Ka6 {[%emt 0:00:00]} 52. c6 {[%emt 0:00:03]} Kb6 {[%emt 0:00:00]} 53. c7 {[%emt 0:00:05]} Ka7 {[%emt 0:00:00]} 54. c8=Q {[%emt 0:00:15]} Kb6 {[%emt 0:00:00]} 55. Qc6+ {[%emt 0:00:16]} Ka7 {[%emt 0:00:00]} 56. Qb5 {[%emt 0:00:07]} 1-0